[Event "Szansa Chess Open 2022"]
[Site "Warsaw"]
[Date "2022.09.18"]
[Round "7"]
[White "Jarzebowski, Kacper"]
[Black "Kulesza, Andrzej"]
[Result "0-1"]
[ECO "B50"]
[WhiteElo "2106"]
[BlackElo "2014"]
[Annotator "TA"]
[PlyCount "209"]
[EventDate "2022.09.17"]
[EventCountry "POL"]
[SourceTitle "playchess.com"]
[Source "ChessBase"]
[SourceQuality "1"]
[TimeControl "900+10"]

{[%evp 9,209,4,7,-22,-12,-24,-24,-28,-37,-26,-21,-29,-21,-17,-11,-18,-9,-47,-33,-48,-48,-46,0,-9,89,80,93,12,39,-76,-65,-43,-67,-114,58,68,67,65,78,67,189,88,315,253,392,384,533,526,1093,553,677,211,219,222,198,86,93,93,93,93,91,25,41,0,8,8,14,0,0,0,0,0,16,12,22,17,15,0,84,81,66,0,0,0,0,0,0,-94,-34,-30,-30,-34,-25,-53,15,0,16,0,8,8,8,1,1,1,1,0,0,-51,-50,-79,-79,-83,-79,-79,-71,-70,-60,-73,-68,-71,-29,-31,-22,-22,-22,-79,-79,-79,-79,-79,-79,-79,-79,-79,-79,-79,-79,-79,-79,-79,-79,-79,-79,-79,-79,-79,-79,-79,-79,-79,-79,-79,-79,-79,-79,-79,-79,-79,-79,-79,-79,-79,-79,-79,-79,-79,-79,-79,-79,-79,-79,-79,-79,-79,-79,-79,-79,-79,-79,-79,-79,-79,-79,-79,-79,-79,-79,-79,-79,-79,-79,-79,-79,-79,-79,-79,-79,-79,-79,-79,-79,-29994]} 1. e4 {[%emt 0:00:01]} c5 {[%emt 0:00:03]} 2. Nf3 {[%emt 0:00:01]} d6 {[%emt 0:00:01]} 3. g3 {[%emt 0:00:02]} g6 {[%emt 0:00:11]} 4. Bg2 {[%emt 0:00:01]} Bg7 {[%emt 0:00:02]} 5. O-O {[%emt 0:00:01]} Nc6 {[%emt 0:00:06]} 6. Qe2 {[%emt 0:00:03] B50: Sicilian: 2...d6, Miscellaneous.} e5 {[%emt 0:00:23]} 7. a4 {[%emt 0:00:09]} Nge7 {[%emt 0:00:06]} 8. c3 {[%emt 0:00:08] Black has an edge.} O-O {[%emt 0:00:10]} 9. Na3 {[%emt 0:00:02] [#]} f5 $146 {[%emt 0:00:36]} ({Predecessor:} 9... h6 10. Nc4 Be6 11. d3 Qd7 12. Nfd2 d5 13. exd5 Nxd5 14. a5 f5 15. Rd1 Rae8 16. Ne3 Nf6 17. a6 b6 18. Qf3 Rc8 19. Ndc4 {1-0 (77) Harvey,M (2349)-Bates,R (2365) Chess.com INT 2018}) 10. d3 {[%emt 0:00:06]} f4 {[%emt 0:00:13]} 11. Nc2 {[%emt 0:00:10][%cal Od3d4]} Bg4 {[%emt 0:00:09]} 12. h3 {[%emt 0:00:10]} Bd7 {[%emt 0:00:02]} 13. gxf4 {[%emt 0:01:24]} exf4 {[%emt 0:00:02]} 14. d4 {[%emt 0:00:01] Prevents Ne5.} Qc8 {[%emt 0:00:06]} 15. Kh2 {[%emt 0:00:10]} h6 {[%emt 0:00:08]} (15... Na5 $15) 16. dxc5 {[%emt 0:00:35]} d5 {[%emt 0:00:16]} (16... dxc5 $11 {keeps the balance.} 17. Qc4+ Be6 18. Qxc5 Bb3) 17. exd5 $16 {[%emt 0:00:19]} Nxd5 {[%emt 0:00:03]} 18. Nfd4 {[%emt 0:00:50]} (18. Nh4 $16 f3 19. Nxf3 (19. Bxf3 Qc7+ 20. Kh1 Nde7 $11)) 18... Nde7 {[%emt 0:00:17]} (18... f3 19. Nxf3 (19. Bxf3 Nf4 $14) 19... Qb8+ 20. Kg1 $16) 19. Nb5 (19. Qc4+ Kh8 $11) (19. Re1 $1 $14 {was the only good move.}) 19... f3 {[%emt 0:00:18]} (19... Ne5 $5 {[%cal Rf4f3]} 20. Nbd4 Qxc5 $15) 20. Bxf3 {[%emt 0:01:15]} Bxh3 {[%emt 0:00:10] Chess con chili.} 21. Rg1 {[%emt 0:00:25]} (21. Bg2 $15 Bxg2 22. Kxg2) 21... Qf5 $2 {[%emt 0:00:16]} (21... Be5+ $17 22. Rg3 (22. Kh1 $2 Bf1 $19) 22... Bxg3+ 23. fxg3 Ne5 $1 24. Qxe5 Rxf3) 22. Be4 $14 {[%emt 0:03:03]} Qe6 {[%emt 0:00:52]} 23. Ncd4 {[%emt 0:00:50]} Nxd4 {[%emt 0:00:33]} 24. Nxd4 {[%emt 0:00:02]} Qd7 {[%emt 0:00:07]} (24... Bxd4 $14 25. cxd4 Bf5) 25. Be3 {[%emt 0:00:34]} (25. Rg3 $18 Be5 26. f4 (26. Bxh6 Bxg3+ 27. fxg3 Rf7 $16) 26... Bxd4 27. Rxh3 (27. cxd4 Bf5 $14)) 25... h5 $2 {[%emt 0:01:43]} (25... Be5+ $16 {keeps fighting.} 26. Kh1 Bxd4 27. Qc4+ (27. Bxd4 Bf5 $16) 27... Kh7 28. Qxd4 (28. cxd4 Bf5 $11) 28... Rad8) 26. Rg5 {[%emt 0:03:34]} Bg4 {[%emt 0:00:24]} (26... Bf6 $142) 27. f3 $18 {[%emt 0:00:06]} Qc7+ {[%emt 0:00:11]} 28. Kh1 {[%emt 0:00:21]} Bd7 {[%emt 0:00:52]} 29. Rag1 {[%emt 0:00:06]} Rf6 {[%emt 0:00:13]} 30. Qh2 $2 {[%emt 0:01:28]} (30. Qc4+ Kf8 31. Bxg6) 30... Qxh2+ {[%emt 0:01:00]} 31. Kxh2 {[%emt 0:00:01]} Bxa4 {[%emt 0:00:05]} 32. Bxg6 {[%emt 0:00:51]} (32. R5g2 $18) 32... Nxg6 $16 {[%emt 0:00:25]} 33. Rxg6 {[%emt 0:00:01]} Rxg6 {[%emt 0:00:02]} 34. Rxg6 {[%emt 0:00:02]} Kf7 {[%emt 0:00:01]} 35. Rg1 {[%emt 0:00:48]} (35. Rg5 $16) 35... Bd7 {[%emt 0:00:15] Inhibits Nf5.} 36. Kg3 {[%emt 0:00:32]} Re8 {[%emt 0:00:02]} 37. Kf2 {[%emt 0:00:02]} h4 {[%emt 0:00:21]} 38. f4 {[%emt 0:00:10]} Bf6 {[%emt 0:00:20]} 39. Nf3 {[%emt 0:00:04]} h3 {[%emt 0:00:27]} 40. Bd4 {[%emt 0:00:06]} Bb5 {[%emt 0:01:30]} 41. Ne5+ {[%emt 0:01:30]} Ke6 {[%emt 0:00:07]} 42. Rh1 {[%emt 0:00:55]} (42. Rg6 {keeps more tension.} Kf5 43. Rh6 Re6 44. Nf3) 42... Rh8 {[%emt 0:00:29]} 43. Nf3 {[%emt 0:00:45]} Rh6 {[%emt 0:01:01]} (43... Bc6 $11) 44. Bxf6 {[%emt 0:00:02]} Kxf6 {[%emt 0:00:01][%mdl 4096] Endgame KRB-KRN} 45. Kg3 {[%emt 0:00:32]} (45. Ng5 $1 $14) 45... Bc6 $11 {[%emt 0:00:37]} 46. Rh2 {[%emt 0:00:08]} Rg6+ {[%emt 0:00:31]} 47. Ng5 {[%emt 0:00:09]} Bg2 {[%emt 0:00:07]} 48. Kg4 {[%emt 0:00:19] [#]} (48. Kf2 $11) 48... Rg8 {[%emt 0:00:13]} (48... a5 $1 $17 {...a4 is the strong threat.} 49. b3 Rg7) 49. b4 $15 {[%emt 0:00:03]} Rg6 {[%emt 0:00:18]} 50. b5 {[%emt 0:00:12]} Rg8 {[%emt 0:00:05]} 51. c4 {[%emt 0:00:13]} Bf1 {[%emt 0:00:33]} ({Black should play} 51... a5 $1 $15 52. bxa6 bxa6) 52. c6 Bxc4 {[%emt 0:00:21]} 53. Kxh3 {[%emt 0:00:26]} Bxb5 {[%emt 0:00:20]} 54. cxb7 {[%emt 0:00:02] aiming for Kg4.} Bc6 {[%emt 0:00:23]} 55. Rb2 {[%emt 0:00:10]} Rb8 {[%emt 0:00:04]} 56. Kg4 {[%emt 0:00:10]} Rxb7 {[%emt 0:00:36]} 57. Rd2 {[%emt 0:00:18] Black must now prevent Rd6+.} Bd7+ {[%emt 0:00:10]} 58. Kh5 {[%emt 0:00:03]} ({Better is} 58. Kf3 $11) 58... Kf5 {[%emt 0:00:28]} 59. Rf2 {[%emt 0:00:10]} a5 {[%emt 0:00:18] Strongly threatening ...a4.} 60. Kh4 {[%emt 0:00:10]} a4 {[%emt 0:00:18] And now ...a3 would win.} 61. Nf7 {[%emt 0:00:02]} Ra7 {[%emt 0:00:17] Hoping for ...a3.} 62. Nd6+ {[%emt 0:00:02]} Ke6 {[%emt 0:00:15]} 63. Nc4 {[%emt 0:00:02]} Kf6 {[%emt 0:00:15] Threatens to win with ...Be6.} 64. Na3 {[%emt 0:00:27]} Be6 {[%emt 0:00:02]} 65. Kg3 {[%emt 0:00:11]} Rg7+ {[%emt 0:00:01]} 66. Kf3 {[%emt 0:00:07]} Bd5+ {[%emt 0:00:04]} 67. Ke2 {[%emt 0:00:08]} (67. Ke3 $11 {remains equal.}) 67... Rg3 $17 {[%emt 0:00:03] Black is better.} 68. Nc2 {[%emt 0:00:10]} a3 {[%emt 0:00:44] Black is more active.} 69. Nxa3 {[%emt 0:00:03]} Rxa3 {[%emt 0:00:02] KRB-KR} 70. f5 {[%emt 0:00:03]} Ke5 {[%emt 0:00:06]} 71. f6 {[%emt 0:00:05]} Bf7 {[%emt 0:00:01]} 72. Kf1 {[%emt 0:00:23]} Rg3 {[%emt 0:00:25]} 73. Ke1 {[%emt 0:00:12]} Rg8 {[%emt 0:00:14]} 74. Kd2 {[%emt 0:00:04]} Be6 {[%emt 0:00:01]} 75. Ke3 {[%emt 0:00:21]} Bf5 {[%emt 0:00:05]} 76. f7 {[%emt 0:00:07]} Rf8 {[%emt 0:00:03]} 77. Ra2 {[%emt 0:00:05]} Be6 {[%emt 0:00:04]} 78. Ra5+ {[%emt 0:00:07]} Bd5 {[%emt 0:00:01]} 79. Ra7 {[%emt 0:00:07]} Bxf7 {[%emt 0:00:02]} 80. Re7+ {[%emt 0:00:14]} Be6 {[%emt 0:00:03]} 81. Rg7 {[%emt 0:00:08]} Ra8 {[%emt 0:00:07]} 82. Rg5+ {[%emt 0:00:07]} Bf5 {[%emt 0:00:02]} 83. Rg7 {[%emt 0:00:11]} Ra3+ {[%emt 0:00:01]} 84. Kd2 {[%emt 0:00:04]} Be4 {[%emt 0:00:08]} 85. Re7+ {[%emt 0:00:17]} Kd4 {[%emt 0:00:01]} 86. Rd7+ {[%emt 0:00:06]} Bd5 {[%emt 0:00:01]} 87. Rc7 {[%emt 0:00:31]} Rd3+ {[%emt 0:00:20]} 88. Kc2 {[%emt 0:00:11]} Rg3 {[%emt 0:00:03]} 89. Kb2 {[%emt 0:00:08]} Rg2+ {[%emt 0:00:15]} 90. Rc2 Rg8 {[%emt 0:00:13]} 91. Rd2+ {[%emt 0:00:14]} Kc5 {[%emt 0:00:02]} 92. Rc2+ {[%emt 0:00:06]} Kb4 93. Rd2 {[%emt 0:00:22]} Bc4 {[%emt 0:00:08]} 94. Rf2 {[%emt 0:00:11]} Ra8 {[%emt 0:00:01]} 95. Kb1 {[%emt 0:00:16] Against Ra2} Kc3 {[%emt 0:00:48]} 96. Rc2+ {[%emt 0:00:01]} Kd3 {[%emt 0:00:02]} 97. Rf2 {[%emt 0:00:04]} Rb8+ {[%emt 0:00:17]} 98. Rb2 {[%emt 0:00:01]} Bb3 {[%emt 0:00:20]} 99. Kc1 {[%emt 0:00:28]} Rc8+ {[%emt 0:00:32]} 100. Kb1 {[%emt 0:00:02]} Kc3 {[%emt 0:00:07]} 101. Rh2 {[%emt 0:00:16]} Rd8 {[%emt 0:00:05][%cal Rd8d1]} 102. Rh3+ {[%emt 0:00:03]} Kb4 {[%emt 0:00:01]} 103. Rh4+ {[%emt 0:00:23]} Bc4 {[%emt 0:00:00]} 104. Kc1 {[%emt 0:00:03]} Kc3 {[%emt 0:05:46] ( -> ...Ra8)} 105. Rxc4+ $2 {[%emt 0:00:00][%mdl 8192] Never resign too early!  Weighted Error Value: White=0.45/Black=0.42} 0-1

[Event "Szansa Chess Open 2022"]
[Site "Warsaw"]
[Date "2022.09.18"]
[Round "7"]
[White "Omar, Ahmed"]
[Black "Khamidov, Abdulla"]
[Result "0-1"]
[ECO "A01"]
[WhiteElo "2064"]
[BlackElo "1804"]
[Annotator "TA"]
[PlyCount "63"]
[EventDate "2022.09.17"]
[EventCountry "POL"]
[SourceTitle "playchess.com"]
[Source "ChessBase"]
[SourceQuality "1"]
[TimeControl "900+10"]

{[%evp 10,63,0,-1,0,0,4,-4,18,-17,0,-8,-1,-18,2,-85,-104,-106,-93,-108,-94,-91,-94,-204,-203,-321,-340,-349,-362,-381,-378,-379,-291,-302,-284,-287,-288,-343,-342,-331,-325,-343,-342,-345,-346,-375,-372,-362,-335,-653,-627,-825,-818,-830,-824,-797]} 1. b3 {[%emt 0:00:10]} Nf6 {[%emt 0:00:19]} 2. Bb2 {[%emt 0:00:00]} d6 {[%emt 0:00:10]} 3. e3 {[%emt 0:00:04]} e5 {[%emt 0:00:02]} 4. d4 {[%emt 0:00:03]} exd4 {[%emt 0:00:09]} 5. Qxd4 {[%emt 0:00:02]} Nc6 {[%emt 0:00:03]} 6. Bb5 {[%emt 0:00:01]} Bd7 {[%emt 0:00:02] A01: Nimzowitsch-Larsen Opening.} 7. Bxc6 {[%emt 0:00:02]} Bxc6 {[%emt 0:00:02]} 8. Nf3 {[%emt 0:00:01]} Qd7 {[%emt 0:00:16] [#] The position is equal.} 9. h3 $146 {[%emt 0:00:12]} ({Predecessor:} 9. Nbd2 Be7 10. h3 O-O 11. O-O-O a5 12. g4 Rfd8 13. g5 Ne8 14. h4 a4 15. h5 axb3 16. axb3 Bxf3 17. Nxf3 {½-½ (32) Froewis,G (2434)-Doskocil,K (2239) Austria 2017}) 9... Qf5 {[%emt 0:00:03]} 10. Nbd2 {[%emt 0:00:55]} Qxc2 {[%emt 0:02:08]} 11. O-O {[%emt 0:00:04]} Qc5 {[%emt 0:00:08]} 12. Qxc5 {[%emt 0:01:25]} (12. Rac1 $11 Qa5 13. e4) 12... dxc5 $17 {[%emt 0:00:02] White is on the road to losing.} 13. Ne5 {[%emt 0:00:23]} Bd5 {[%emt 0:00:29]} 14. e4 {[%emt 0:00:16] [#]} Be6 {[%emt 0:00:08]} ({Don't take} 14... Nxe4 15. Nxe4 Bxe4 16. Rfe1 $16) 15. f4 {[%emt 0:00:48]} O-O-O {[%emt 0:03:15]} 16. Ndf3 {[%emt 0:00:52]} (16. Rad1 $17 Bd6 17. Nd3) 16... Nxe4 $19 {[%emt 0:00:29]} 17. f5 {[%emt 0:01:37]} (17. Rfe1 $142 f5 18. Ng5 Nxg5 19. fxg5) 17... Bd5 {[%emt 0:00:13]} ({Not} 17... Bxf5 18. Nxf7 c4 19. bxc4 $14 (19. Nxh8 c3 $11)) 18. Rfe1 {[%emt 0:00:17][%cal Oe5f7]} f6 {[%emt 0:00:17]} 19. Rxe4 {[%emt 0:00:27]} Bxe4 {[%emt 0:00:19]} 20. Nf7 {[%emt 0:00:02]} Bxf3 {[%emt 0:00:11]} 21. Nxd8 {[%emt 0:05:04]} Kxd8 {[%emt 0:00:03]} 22. gxf3 {[%emt 0:00:02][%mdl 4096] Endgame KRB-KRB} Bd6 {[%emt 0:00:02]} 23. Rd1 {[%emt 0:00:21]} Re8 {[%emt 0:00:08] White must now prevent ...Re2.} 24. Kf2 {[%emt 0:00:10]} Kd7 {[%emt 0:00:05]} 25. h4 {[%emt 0:00:37]} Kc6 {[%emt 0:00:07]} 26. Rg1 {[%emt 0:00:17]} Re7 {[%emt 0:00:02]} 27. h5 {[%emt 0:00:09]} h6 {[%emt 0:00:01]} 28. Rg6 {[%emt 0:00:10]} Kd5 {[%emt 0:00:09]} 29. Bxf6 $2 {[%emt 0:01:32] [#]} (29. Rg1) 29... gxf6 {[%emt 0:00:11] Black is clearly winning.} 30. Rxh6 {[%emt 0:00:01]} Ke5 {[%emt 0:00:25]} 31. Rh8 {[%emt 0:00:19]} Kxf5 {[%emt 0:00:05]} 32. Rh6 {Weighted Error Value: White=0.41/Black=0.10 (very precise)} 0-1

[Event "Szansa Chess Open 2022"]
[Site "Warsaw"]
[Date "2022.09.18"]
[Round "7"]
[White "Podgorski, Maciej"]
[Black "Smieszek, Wojciech"]
[Result "1/2-1/2"]
[ECO "B36"]
[WhiteElo "2059"]
[BlackElo "2082"]
[Annotator "TA"]
[PlyCount "174"]
[EventDate "2022.09.17"]
[EventCountry "POL"]
[SourceTitle "playchess.com"]
[Source "ChessBase"]
[SourceQuality "1"]
[TimeControl "900+10"]

{[%evp 22,174,18,15,16,-8,54,39,30,37,47,-9,-10,-23,-20,-31,54,45,70,47,75,0,12,15,14,0,87,86,96,95,72,80,172,72,74,8,23,7,209,104,112,98,165,27,15,22,38,0,0,-16,-13,-30,-23,-13,-18,-67,-13,-14,0,-2,-9,-12,-8,-14,0,0,0,0,0,0,24,0,0,0,0,0,0,-7,0,0,93,93,87,83,194,187,588,241,458,0,0,0,0,0,0,0,145,49,51,-167,-150,-295,-254,-266,0,0,367,-406,-349,-1107,-1088,-992,-915,-606,-122,-109,0,0,0,0,0,0,0,0,0,0,0,0,0,0,0,0,0,0,0,0,0,0,0,0,0,0,0,0,0,0,0,0,0,0,0,0,0,0,0]} 1. e4 {[%emt 0:00:02]} c5 {[%emt 0:00:01]} 2. Nf3 {[%emt 0:00:02]} g6 {[%emt 0:00:01]} 3. d4 {[%emt 0:00:23]} cxd4 {[%emt 0:00:01]} 4. Nxd4 {[%emt 0:00:01]} Nc6 {[%emt 0:00:02]} 5. c4 {[%emt 0:00:36]} Nf6 {[%emt 0:00:02]} 6. Nc3 {[%emt 0:00:04]} Nxd4 {[%emt 0:00:03]} 7. Qxd4 {[%emt 0:00:03]} d6 {[%emt 0:00:01]} 8. Bg5 {[%emt 0:00:06]} Bg7 {[%emt 0:00:02]} 9. Be2 {[%emt 0:00:17]} O-O {[%emt 0:00:03]} 10. Qd2 {[%emt 0:00:08]} Be6 {[%emt 0:01:31]} 11. O-O {[%emt 0:00:19] seems to push 11.Rc1 aside.} Qa5 {[%emt 0:00:17]} 12. Rfd1 {[%emt 0:01:53]} Rfc8 {[%emt 0:00:11] B36: Sicilian: Maroczy Bind: Gurgenidze System.} 13. b3 {[%emt 0:00:25] [#]} Qe5 $146 {[%emt 0:04:14]} (13... b5 $11) ({Predecessor:} 13... b5 14. Bxf6 Bxf6 15. Nd5 Qxd2 16. Nxf6+ exf6 17. Rxd2 bxc4 18. bxc4 Bxc4 19. Bxc4 Rxc4 20. Rxd6 {½-½ (110) Vatter,H (2216)-Wan,Y (2507) Kiel 2018}) 14. Bf4 {[%emt 0:02:48]} Qa5 {[%emt 0:00:31] White is slightly better.} 15. Rac1 {[%emt 0:00:13]} a6 {[%emt 0:00:16][%cal Ob7b5]} 16. Qe3 {[%emt 0:01:29]} (16. Bf3 $14) 16... b5 $11 {[%emt 0:00:47][%cal Rb5c4]} 17. Nd5 {[%emt 0:02:17]} Bxd5 {[%emt 0:00:30]} 18. exd5 {[%emt 0:00:24]} bxc4 {[%emt 0:00:20]} (18... Qxa2 $15 19. h3 (19. Qxe7 $2 Re8 $19) 19... Rc7) 19. Bxc4 $14 {[%emt 0:00:12]} (19. bxc4 Qxa2 20. h3 (20. Qxe7 $2 Re8 $19) 20... Rc7 $11) 19... Re8 {[%emt 0:02:54]} 20. a4 {[%emt 0:00:24] White is more active.} Nd7 {[%emt 0:00:11]} 21. Re1 {[%emt 0:00:22]} (21. Qh3 $16 Ne5 22. Be2) 21... Be5 $11 {[%emt 0:00:44]} 22. Bxe5 {[%emt 0:01:23]} Nxe5 {[%emt 0:00:01]} 23. Qh6 {[%emt 0:00:22]} f5 {[%emt 0:03:40]} (23... Ng4 $11 24. Qg5 Ne5) 24. h4 $16 {[%emt 0:01:54][%cal Oe1e5] Strongly threatening Rxe5!} Qb6 {[%emt 0:00:26][%cal Ob6f2]} 25. Qf4 {[%emt 0:00:56]} Kg7 {[%emt 0:00:44]} 26. h5 {[%emt 0:00:22]} Rac8 {[%emt 0:00:37]} (26... Rg8 $16) 27. hxg6 {[%emt 0:00:51]} (27. a5 $1 $18 {[%cal Ra5b6]} Qxa5 28. Rxe5 dxe5 29. Qxe5+ Kh6 30. Qe3+ (30. Qf4+ g5 $16) 30... f4 31. Qxf4+ g5 32. Qf7) 27... hxg6 {[%emt 0:00:03]} 28. Re3 {[%emt 0:00:53]} (28. a5 $1 $16 {[%cal Ra5b6]} Qxa5 29. Rxe5 dxe5 30. Qxe5+ Kf7 31. Ra1 (31. Qe6+ Kg7 $16)) 28... Rh8 {[%emt 0:00:27]} 29. Rce1 {[%emt 0:00:12][%cal Oa4a5] Black should prevent a5!} Qc7 (29... a5 $11 {and Black stays safe.}) 30. Bxa6 {[%emt 0:00:10]} (30. Qd4 $1 $18 Qc5 31. Qxc5 Rxc5 32. f4 Nxc4 33. Rxe7+ Kf8 34. bxc4 Rxc4 35. Re8+ Kg7 36. R1e7+ Kf6 37. Re6+ Kg7 38. R8e7+ (38. Rxh8 Kxh8 39. a5 Rc5 $11) 38... Kf8 39. Ra7 (39. Re8+ Kg7 $18)) 30... Ra8 {[%emt 0:00:27]} 31. Bc4 {[%emt 0:00:11]} Kf6 {[%emt 0:00:02]} (31... Rh7 $16) 32. Rg3 {[%emt 0:00:30]} (32. g4 $1 $18 {[%cal Oe3e5] Black must now prevent Rxe5!} Rh7 33. Rxe5 $1 dxe5 34. Rxe5 $1) 32... Rh5 $1 $11 {[%emt 0:00:02]} 33. Be2 {[%emt 0:00:04]} g5 {[%emt 0:00:43]} 34. Qd4 {[%emt 0:00:18]} Rh4 {[%emt 0:00:10]} 35. Qc3 {[%emt 0:00:10] [#]} Rah8 $1 {[%emt 0:00:07][%csl Gh8][%cal Rh4h1]} 36. f4 $1 {[%emt 0:00:14]} Qb6+ {[%emt 0:00:46]} 37. Qe3 {[%emt 0:00:02] The board is on fire.} Qxe3+ {[%emt 0:00:06]} 38. Rxe3 {[%emt 0:00:06]} Rxf4 {[%emt 0:00:05]} ({Better is} 38... Rh1+ $15 39. Kf2 gxf4) 39. a5 {[%emt 0:00:16]} Rb4 {[%emt 0:00:05]} 40. a6 {[%emt 0:00:03]} Ra8 {[%emt 0:00:01]} 41. Rc1 {[%emt 0:00:21]} Ra7 {[%emt 0:00:08]} 42. Rec3 {[%emt 0:00:08]} Rb6 {[%emt 0:00:35]} 43. Ra1 {[%emt 0:00:14]} Nd7 {[%emt 0:00:03]} 44. Bc4 {[%emt 0:00:08]} Nc5 {[%emt 0:00:01]} 45. Re3 {[%emt 0:00:13]} Ra8 {[%emt 0:00:25][%cal Rc5a6]} 46. Rf3 {[%emt 0:00:09]} ({But not} 46. a7 Rb7 47. b4 Rxb4 $17) 46... g4 {[%emt 0:00:10]} 47. Rf2 {[%emt 0:00:08]} Ne4 {[%emt 0:00:10]} 48. Re2 {[%emt 0:00:13]} Ke5 {[%emt 0:00:02]} 49. Rae1 {[%emt 0:00:08]} Kd4 {[%emt 0:00:08]} 50. Rd1+ {[%emt 0:00:06]} Kc5 {[%emt 0:00:01]} (50... Ke5 $11) 51. Rc2 $16 {[%emt 0:00:16]} Kb4 {[%emt 0:00:12]} 52. Rf1 {[%emt 0:00:01]} Ng3 {[%emt 0:00:28]} (52... Raxa6 $16 {was worth a try.} 53. Bxa6 Rxa6) 53. Ra1 $18 {[%emt 0:00:09]} Rbb8 $2 {[%emt 0:00:06]} (53... Kc5 {is more resistant.} 54. Kf2 Ne4+ 55. Ke3 Rb4) 54. Ra4+ {[%emt 0:00:11]} Kc5 {[%emt 0:00:01]} 55. Ra5+ $2 {[%emt 0:00:08]} ({White has to play} 55. a7 $18) 55... Kd4 $1 $11 {[%emt 0:00:03]} 56. Ra1 {[%emt 0:00:16]} Rh8 $36 {[%emt 0:00:05][%mdl 2048] aiming for ...Rh1+. White is under pressure.} 57. Rd1+ {[%emt 0:00:09]} Ke5 {[%emt 0:00:01]} 58. Re1+ {[%emt 0:00:10]} Kf6 {[%emt 0:00:04]} (58... Kd4 $1 $11 {remains equal.}) 59. Kf2 {[%emt 0:00:06]} ({White should play} 59. b4 $1 $16) 59... Ne4+ $14 {[%emt 0:00:02]} 60. Rxe4 $2 {[%emt 0:00:16]} fxe4 {[%emt 0:00:01][%mdl 4096] Endgame KRR-KRB} 61. b4 {[%emt 0:00:02]} (61. Ke3 $17 Ke5 62. Rf2) 61... Ke5 {[%emt 0:00:06]} 62. b5 {[%emt 0:00:05]} Rhb8 $2 {[%emt 0:00:02]} ({Black should try} 62... Rhc8 $19 {Hoping for ...Rab8.} 63. Ke3 Rab8) 63. Ke3 $11 {[%emt 0:00:23]} e6 $2 {[%emt 0:00:02][%mdl 8192] [#]} (63... Rc8 $1 $11) 64. dxe6 $4 {[%emt 0:00:14][%mdl 8192]} (64. Rd2 $1 $18 {is the narrow road to win.}) 64... d5 $19 {[%emt 0:00:02][%cal Bd6d5,Bd5d4][%mdl 32]} 65. Bb3 $2 {[%emt 0:00:10]} (65. Bf1 Rf8 66. Ke2) 65... Rxb5 {[%emt 0:00:05]} 66. Ba4 {[%emt 0:00:09]} d4+ {[%emt 0:00:39]} 67. Kd2 {[%emt 0:00:08]} Rb6 $2 {[%emt 0:00:08]} (67... Ra5 $19 {has better winning chances.} 68. Rc4 Ra7) 68. e7 $17 {[%emt 0:00:11] [#]} Re6 {[%emt 0:00:58]} (68... e3+ $1 $17 69. Ke2 Rd6 70. Rc5+ Ke4) 69. e8=Q $11 {[%emt 0:00:10] The position is equal.} Rexe8 {[%emt 0:00:02]} 70. Bxe8 {[%emt 0:00:01] Bb5 is the strong threat.} Rxe8 {[%emt 0:00:02] KR-KR} 71. a7 {[%emt 0:00:21]} Ra8 {[%emt 0:00:04]} 72. Ra2 {[%emt 0:00:08]} Kd5 {[%emt 0:00:13]} 73. Ra5+ {[%emt 0:00:09]} Kc4 {[%emt 0:00:09]} 74. Ra4+ {[%emt 0:00:02]} Kc5 {[%emt 0:00:02]} 75. Ra5+ {[%emt 0:00:01]} Kb4 {[%emt 0:00:06]} 76. Rd5 {[%emt 0:00:19]} Kc4 {[%emt 0:00:15]} 77. Ra5 {[%emt 0:00:01]} g3 {[%emt 0:00:10]} 78. Ra4+ {[%emt 0:00:08]} Kc5 {[%emt 0:00:34]} 79. Ra5+ {[%emt 0:00:05]} Kb6 {[%emt 0:00:10]} 80. Ra4 {[%emt 0:00:10]} Rxa7 {[%emt 0:00:26]} 81. Rxd4 {[%emt 0:00:04]} Ra2+ {[%emt 0:00:01]} 82. Ke3 {[%emt 0:00:12]} Rxg2 {[%emt 0:00:02]} 83. Rxe4 {[%emt 0:00:07]} Kc5 {[%emt 0:00:11]} 84. Rg4 {[%emt 0:00:03]} Kd5 {[%emt 0:00:03]} 85. Kf3 {[%emt 0:00:02]} Rg1 {[%emt 0:00:01]} 86. Rxg3 {[%emt 0:00:02]} Rxg3+ {[%emt 0:00:01]} 87. Kxg3 {[%emt 0:00:01]} Ke5 {[%emt 0:00:36] Both players deserved the win here.  Weighted Error Value: White=0.38/Black=0.33} 1/2-1/2